fUST/lending_fUST_20241204
["ID","MTS","AMOUNT","RATE_DAILY","PERIOD"]
[344257118,1733322174340,576.02462581,0.00025753,7]
[344257119,1733322182509,1000.5,0.00026,31]
[344257120,1733322184712,500.0,0.00024657,7]
[344257121,1733322184979,443.0,0.00024931,7]
[344257122,1733322185563,500.0,0.00024657,7]
[344257123,1733322185852,500.0,0.00024931,7]
[344257124,1733322186128,500.0,0.00025205,7]
[344257125,1733322186867,500.0,0.00025479,7]
[344257126,1733322187148,500.0,0.00025753,7]
[344257127,1733322187769,500.0,0.00026027,7]
[344257128,1733322188046,500.0,0.00026301,7]
[344257129,1733322188363,500.0,0.00026575,7]
[344257130,1733322188497,500.0,0.00024657,7]
[344257131,1733322188616,500.0,0.00026849,7]
[344257132,1733322199023,500.0,0.00024657,7]
[344257133,1733322199069,563.33,0.00024657,7]
[344257134,1733322199357,563.33,0.00024931,7]
[344257135,1733322199640,563.33,0.00025205,7]
[344257136,1733322199906,563.33,0.00025479,7]
[344257137,1733322199953,500.0,0.00024931,7]
[344257138,1733322201375,582.3590066,0.00026274,2]
[344257139,1733322201420,500.0,0.00025205,7]
[344257140,1733322201468,563.33,0.00025753,7]
[344257141,1733322201672,563.33,0.00026027,7]
[344257142,1733322201925,563.33,0.00026301,7]
[344257143,1733322201971,500.0,0.00025479,7]
[344257144,1733322202239,500.0,0.00025753,7]
[344257145,1733322202502,500.0,0.00026027,7]
[344257146,1733322203295,563.33,0.00026575,7]
[344257147,1733322203597,563.33,0.00026849,7]
[344257148,1733322203888,500.0,0.00026301,7]
[344257149,1733322204214,500.0,0.00026575,7]
[344257150,1733322204502,500.0,0.00026849,7]
[344257151,1733322211085,24900.0,0.00026274,2]
[344257152,1733322212847,1000.5,0.00026,31]
[344257154,1733322235777,319.192879,0.00013973,2]
[344257156,1733322345141,-4009.27669456,0.00020041,2]
[344257167,1733322443297,-5000.0,0.00019841,2]
[344257168,1733322443326,-990.72330544,0.00020041,2]
[344257169,1733322443369,-319.192879,0.00020447,2]
[344257170,1733322443406,-300.0,0.00024656,2]
[344257171,1733322443439,-300.0,0.00024656,2]
[344257172,1733322443471,-559.96,0.00024657,7]
[344257173,1733322443506,-500.0,0.00024657,7]
[344257174,1733322443539,-500.0,0.00024657,7]
[344257175,1733322443573,-881.36,0.00024657,7]
[344257176,1733322443603,-500.0,0.00024657,7]
[344257177,1733322443635,-500.0,0.00024657,7]
[344257178,1733322443666,-500.0,0.00024657,7]
[344257179,1733322443697,-500.0,0.00024657,7]
[344257180,1733322443728,-500.0,0.00024657,7]
[344257181,1733322443760,-559.96,0.00024931,7]
[344257182,1733322443791,-415.21957286,0.00024931,7]
[344257183,1733322443822,-198.9462128,0.00024931,7]
[344257184,1733322443854,-881.36,0.00024931,7]
[344257185,1733322443885,-500.0,0.00024931,7]
[344257186,1733322443915,-500.0,0.00024931,7]
[344257187,1733322443945,-500.0,0.00024931,7]
[344257188,1733322443975,-500.0,0.00024931,7]
[344257189,1733322444007,-520.64851619,0.00024931,7]
[344257190,1733322444037,-2579.57879452,0.00025105,2]
[344257191,1733322444066,-42639.5922658,0.00025162,2]
[344257192,1733322444095,-559.96,0.00025205,7]
[344257193,1733322444125,-881.36,0.00025205,7]
[344257194,1733322444154,-500.0,0.00025205,7]
[344257195,1733322444182,-500.0,0.00025205,7]
[344257196,1733322444213,-500.0,0.00025205,7]
[344257197,1733322444243,-500.0,0.00025205,7]
[344257198,1733322444274,-440.79551813,0.00025374,2]
[344257199,1733322444306,-228.03083744,0.00025374,2]
[344257200,1733322444333,-218.4671725,0.00025374,2]
[344257201,1733322444360,-582.96857945,0.00025374,2]
[344257202,1733322444391,-500.0,0.00025374,2]
[344257203,1733322444421,-566.28455218,0.00025374,2]
[344257204,1733322444450,-217.16476327,0.00025374,2]
[344257205,1733322444480,-566.28455218,0.00025374,2]
[344257206,1733322444511,-500.0,0.00025374,2]
[344257207,1733322444542,-566.28455218,0.00025374,2]
[344257208,1733322444574,-566.28455218,0.00025374,2]
[344257209,1733322444605,-566.28455218,0.00025374,2]
[344257210,1733322444634,-500.0,0.00025374,2]
[344257211,1733322444664,-566.28455218,0.00025374,2]
[344257212,1733322444696,-566.28455218,0.00025374,2]
[344257213,1733322444730,-566.28455218,0.00025374,2]
[344257214,1733322444764,-500.0,0.00025374,2]
[344257215,1733322444798,-566.28455218,0.00025374,2]
[344257216,1733322444831,-500.0,0.00025374,2]
[344257217,1733322444865,-566.28455218,0.00025374,2]
[344257218,1733322444900,-566.28455218,0.00025374,2]
[344257219,1733322444931,-500.0,0.00025374,2]
[344257220,1733322444964,-566.28455218,0.00025374,2]
[344257221,1733322444995,-500.0,0.00025374,2]
[344257222,1733322445032,-566.28455218,0.00025374,2]
[344257223,1733322445065,-566.28455218,0.00025374,2]
[344257224,1733322445099,-566.28455218,0.00025374,2]
[344257225,1733322445129,-566.28455218,0.00025374,2]
[344257226,1733322445160,-566.28455218,0.00025374,2]
[344257227,1733322445191,-566.28455218,0.00025374,2]
[344257228,1733322445225,-566.28455218,0.00025374,2]
[344257229,1733322445259,-566.28455218,0.00025374,2]
[344257230,1733322445293,-566.28455218,0.00025374,2]
[344257231,1733322445324,-566.28455218,0.00025374,2]
[344257232,1733322445485,-566.28455218,0.00025374,2]
[344257233,1733322445520,-566.28455218,0.00025374,2]
[344257234,1733322445553,-566.28455218,0.00025374,2]
[344257235,1733322445583,-566.28455218,0.00025374,2]
[344257236,1733322445613,-566.28455218,0.00025374,2]
[344257237,1733322445643,-566.28455218,0.00025374,2]
[344257238,1733322445673,-566.28455218,0.00025374,2]
[344257239,1733322445703,-566.28455218,0.00025374,2]
[344257240,1733322445734,-566.28455218,0.00025374,2]
[344257241,1733322445765,-566.28455218,0.00025374,2]
[344257242,1733322445797,-566.28455218,0.00025374,2]
[344257243,1733322445827,-566.28455218,0.00025374,2]
[344257244,1733322445858,-566.28455218,0.00025374,2]
[344257245,1733322445889,-566.28455218,0.00025374,2]
[344257246,1733322445919,-566.28455218,0.00025374,2]
[344257247,1733322445949,-566.28455218,0.00025374,2]
[344257248,1733322445980,-566.28455218,0.00025374,2]
[344257249,1733322446012,-566.28455218,0.00025374,2]
[344257250,1733322446041,-566.28455218,0.00025374,2]
[344257251,1733322446073,-566.28455218,0.00025374,2]
[344257252,1733322446105,-566.28455218,0.00025374,2]
[344257253,1733322446136,-566.28455218,0.00025374,2]
[344257254,1733322446167,-566.28455218,0.00025374,2]
[344257255,1733322446197,-566.28455218,0.00025374,2]
[344257256,1733322446230,-566.28455218,0.00025374,2]
[344257257,1733322446263,-566.28455218,0.00025374,2]
[344257258,1733322446293,-566.28455218,0.00025374,2]
[344257259,1733322446323,-566.28455218,0.00025374,2]
[344257260,1733322446354,-566.28455218,0.00025374,2]
[344257261,1733322446384,-564.7540534,0.00025374,2]
[344257262,1733322446414,-564.7540534,0.00025374,2]
[344257263,1733322446443,-564.7540534,0.00025374,2]
[344257264,1733322446473,-564.7540534,0.00025374,2]
[344257265,1733322446503,-564.7540534,0.00025374,2]
[344257266,1733322446537,-564.7540534,0.00025374,2]
[344257267,1733322446568,-564.7540534,0.00025374,2]
[344257268,1733322446600,-564.7540534,0.00025374,2]
[344257269,1733322446631,-564.7540534,0.00025374,2]
[344257270,1733322446661,-564.7540534,0.00025374,2]
[344257271,1733322446692,-564.7540534,0.00025374,2]
[344257272,1733322446725,-564.7540534,0.00025374,2]
[344257273,1733322446760,-564.7540534,0.00025374,2]
[344257274,1733322446792,-564.7540534,0.00025374,2]
[344257275,1733322446824,-564.7540534,0.00025374,2]
[344257276,1733322446855,-564.7540534,0.00025374,2]
[344257277,1733322446887,-564.7540534,0.00025374,2]
[344257278,1733322446918,-564.7540534,0.00025374,2]
[344257279,1733322446950,-564.7540534,0.00025374,2]
[344257280,1733322446981,-564.7540534,0.00025374,2]
[344257281,1733322447014,-564.7540534,0.00025374,2]
[344257282,1733322447045,-564.7540534,0.00025374,2]
[344257283,1733322447075,-564.7540534,0.00025374,2]
[344257284,1733322447107,-564.7540534,0.00025374,2]
[344257285,1733322447136,-564.7540534,0.00025374,2]
[344257286,1733322447166,-564.7540534,0.00025374,2]
[344257287,1733322447198,-559.10651287,0.00025374,2]
[344257288,1733322447230,-559.10651287,0.00025374,2]
[344257289,1733322447262,-559.10651287,0.00025374,2]
[344257290,1733322447291,-559.10651287,0.00025374,2]
[344257291,1733322447326,-559.10651287,0.00025374,2]
[344257292,1733322447359,-559.10651287,0.00025374,2]
[344257293,1733322447395,-559.10651287,0.00025374,2]
[344257294,1733322447431,-559.10651287,0.00025374,2]
[344257295,1733322447464,-559.10651287,0.00025374,2]
[344257296,1733322447496,-559.10651287,0.00025374,2]
[344257297,1733322447527,-4501.0547656,0.00025375,2]
[344257298,1733322447556,-559.96,0.00025479,7]
[344257299,1733322447584,-881.36,0.00025479,7]
[344257300,1733322447612,-500.0,0.00025479,7]
[344257301,1733322447642,-500.0,0.00025479,7]
[344257302,1733322447670,-290.35597635,0.00025479,7]
[344257303,1733322447698,-500.0,0.00025479,7]
[344257304,1733322447728,-559.96,0.00025753,7]
[344257305,1733322447759,-881.36,0.00025753,7]
[344257306,1733322447789,-500.0,0.00025753,7]
[344257307,1733322447819,-500.0,0.00025753,7]
[344257308,1733322447847,-500.0,0.00025753,7]
[344257309,1733322447875,-2579.57879449,0.00025962,2]
[344257310,1733322447903,-1000.5,0.00026,31]
[344257311,1733322447930,-443.5,0.00026,31]
[344257312,1733322448789,659.57091154,0.00026,2]
[344257313,1733322449113,502.44537569,0.00024657,7]
[344257314,1733322454353,59481.65458163,0.00025,7]
[344257315,1733322456690,500.0,0.00024657,7]
[344257316,1733322457298,500.0,0.00024931,7]
[344257317,1733322457559,500.0,0.00025205,7]
[344257318,1733322457995,500.0,0.00025479,7]
[344257319,1733322458266,500.0,0.00025753,7]
[344257320,1733322459161,11733.17173008,0.00024,2]
[344257321,1733322463520,697.74,0.00024657,7]
[344257322,1733322463783,697.74,0.00024931,7]
[344257323,1733322464037,697.74,0.00025205,7]
[344257324,1733322464299,697.74,0.00025479,7]
[344257325,1733322464552,697.74,0.00025753,7]
[344257326,1733322481175,9250.57091466,0.00016,2]
[344257327,1733322489409,555.73101174,0.00024657,7]
[344257328,1733322492593,500.0,0.00024657,7]
[344257329,1733322492882,560.53,0.00024931,7]
[344257336,1733322508039,282.54873928,0.000232,2]
[344257341,1733322521954,6739.45717098,0.0002201,16]
[344257342,1733322523050,12344.43778187,0.0002509,2]
[344257343,1733322524424,32958.64549884,0.00025,2]
[344257344,1733322524580,150.11431438,0.0002,7]
[344257345,1733322524866,1429.26116821,0.0001999,2]
[344257349,1733322528623,16250.95953686,0.000109,2]
[344257350,1733322528661,3536.99101223,0.000109,2]
[344257351,1733322547944,-504.6136039,0.00025822,2]
[344257352,1733322547973,-300.0,0.00025999,2]
[344257353,1733322548002,-300.0,0.00025999,2]
[344257354,1733322548031,-43675.4172754,0.00026,30]
[344257355,1733322548196,-504.6136039,0.00026,30]
[344257356,1733322548214,-300.0,0.00026,30]
[344257357,1733322548228,-300.0,0.00026,30]
[344257358,1733322548244,-43463.3246375,0.00026,30]
[344257359,1733322548255,-7133.42906729,0.00026,3]
[344257368,1733322572081,-161.133458,0.00025082,2]
[344257369,1733322572109,-161.133458,0.00025089,2]
[344257370,1733322572146,-161.133458,0.00025096,2]
[344257371,1733322572172,-161.133458,0.00025103,2]
[344257372,1733322572199,-161.133458,0.0002511,2]
[344257373,1733322572227,-161.133458,0.00025117,2]
[344257374,1733322572259,-161.133458,0.00025124,2]
[344257375,1733322572289,-161.133458,0.00025131,2]
[344257376,1733322572318,-161.133458,0.00025138,2]
[344257377,1733322572346,-161.133458,0.00025145,2]
[344257378,1733322572377,-161.133458,0.00025152,2]
[344257379,1733322572404,-161.133458,0.00025159,2]
[344257380,1733322572432,-161.133458,0.00025166,2]
[344257381,1733322572460,-161.133458,0.00025172,2]
[344257382,1733322572487,-161.133458,0.00025179,2]
[344257383,1733322572516,-161.133458,0.00025186,2]
[344257384,1733322572546,-161.133458,0.00025193,2]
[344257385,1733322572576,-161.133458,0.000252,2]
[344257386,1733322572605,-161.133458,0.00025207,2]
[344257387,1733322572636,-176.26095,0.00025846,2]
[344257393,1733322603566,176.09231169,0.00024657,7]
[344257394,1733322607373,500.0,0.00024657,7]
[344257395,1733322610327,698.6783225,0.00025988,2]
[344257396,1733322629970,720.8410734,0.00025927,2]
[344257424,1733322632117,-559.96,0.00026027,7]
[344257425,1733322632127,-500.0,0.00026027,7]
[344257426,1733322632138,-500.0,0.00026027,7]
[344257427,1733322632148,-697.74,0.00026027,7]
[344257428,1733322632162,-300.0,0.000263,2]
[344257429,1733322632172,-559.96,0.00026301,7]
[344257430,1733322632182,-500.0,0.00026301,7]
[344257431,1733322632192,-521.84425235,0.00026301,7]
[344257432,1733322632202,-697.74,0.00026301,7]
[344257433,1733322632212,-660.0,0.00026384,2]
[344257434,1733322632222,-1388.31974213,0.00026453,2]
[344257435,1733322632232,-559.96,0.00026575,7]
[344257436,1733322632242,-500.0,0.00026575,7]
[344257437,1733322632254,-697.74,0.00026575,7]
[344257438,1733322632268,-176.26095,0.00026802,2]
[344257439,1733322632278,-559.96,0.00026849,7]
[344257440,1733322632288,-500.0,0.00026849,7]
[344257441,1733322632299,-697.74,0.00026849,7]
[344257442,1733322632310,-319.192879,0.00026921,2]
[344257444,1733322632319,-160.0,0.00027,2]
[344257445,1733322632329,-500.0,0.00027121,7]
[344257447,1733322632341,-500.0,0.00027121,7]
[344257448,1733322632352,-500.0,0.00027121,7]
[344257449,1733322632362,-1984.55,0.00027122,7]
[344257450,1733322632372,-500.0,0.00027122,7]
[344257451,1733322632382,-500.0,0.00027122,7]
[344257452,1733322632392,-500.0,0.00027123,7]
[344257454,1733322632402,-500.0,0.00027123,7]
[344257456,1733322632418,-563.33,0.00027123,7]
[344257458,1733322632428,-559.96,0.00027123,7]
[344257460,1733322632438,-500.0,0.00027123,7]
[344257461,1733322632448,-697.74,0.00027123,7]
[344257462,1733322632458,-157.24732878,0.00027123,2]
[344257463,1733322632468,-152.710983,0.00027178,2]
[344257464,1733322632478,-151.0,0.000272,17]
[344257465,1733322632488,-151.0,0.000273,13]
[344257466,1733322632498,-247.41442542,0.00027395,7]
[344257468,1733322632507,-265.90860412,0.00027395,7]
[344257477,1733322638267,-1934.68409592,0.000273,2]
[344257479,1733322638281,-234.09139588,0.00027395,7]
[344257481,1733322638291,-500.0,0.00027395,7]
[344257483,1733322638301,-196.53142409,0.00027396,7]
[344257915,1733322643004,-380.19298661,0.00027396,7]
[344257918,1733322643014,-1984.55,0.00027396,7]
[344257920,1733322643023,-500.0,0.00027396,7]
[344257921,1733322643033,-500.0,0.00027396,7]
[344257923,1733322643043,-500.0,0.00027396,7]
[344257925,1733322643053,-500.0,0.00027397,2]
[344257927,1733322643063,-500.0,0.00027397,7]
[344257930,1733322643073,-500.0,0.00027397,7]
[344257932,1733322643083,-563.33,0.00027397,7]
[344257933,1733322643093,-559.96,0.00027397,7]
[344257936,1733322643103,-500.0,0.00027397,7]
[344257938,1733322643113,-697.74,0.00027397,7]
[344257939,1733322643123,-10853.84329899,0.000274,3]
[344257963,1733322643350,-7680.02183184,0.000274,3]
[344257965,1733322643360,-1572.91349996,0.000274,2]
[344257967,1733322643371,-3617.73487135,0.000274,2]
[344257969,1733322643382,-750.12,0.0002749,3]
[344257971,1733322643392,-500.0,0.00027498,2]
[344257973,1733322643402,-500.0,0.00027498,2]
[344257975,1733322643415,-500.0,0.00027498,2]
[344257977,1733322643426,-617.72192908,0.00027498,2]
[344257979,1733322643436,-500.0,0.00027498,2]
[344257981,1733322643446,-500.0,0.00027498,2]
[344257983,1733322643455,-500.0,0.00027498,2]
[344257985,1733322643464,-500.0,0.00027498,2]
[344257987,1733322643475,-500.0,0.00027498,2]
[344257989,1733322643484,-500.0,0.00027498,2]
[344257991,1733322643495,-500.0,0.00027498,2]
[344257993,1733322643505,-500.0,0.00027498,2]
[344257995,1733322643515,-500.0,0.00027498,2]
[344257997,1733322643524,-500.0,0.00027498,2]
[344257998,1733322643535,-500.0,0.00027498,2]
[344258000,1733322643545,-500.0,0.00027498,2]
[344258003,1733322643555,-500.0,0.00027498,2]
[344258005,1733322643564,-500.0,0.00027498,2]
[344258007,1733322643575,-500.0,0.00027498,2]
[344258008,1733322643584,-500.0,0.00027498,2]
[344258010,1733322643594,-500.0,0.00027498,2]
[344258012,1733322643604,-500.0,0.00027498,2]
[344258015,1733322643614,-500.0,0.00027498,2]
[344258017,1733322643626,-500.0,0.00027498,2]
[344258018,1733322643636,-500.0,0.00027498,2]
[344258020,1733322643646,-500.0,0.00027498,2]
[344258022,1733322643656,-500.0,0.00027498,2]
[344258024,1733322643671,-500.0,0.00027498,2]
[344258026,1733322643682,-500.0,0.00027498,2]
[344258028,1733322643691,-500.0,0.00027498,2]
[344258030,1733322643702,-500.0,0.00027498,2]
[344258032,1733322643712,-630.01444572,0.00027498,2]
[344258034,1733322643722,-500.0,0.00027498,2]
[344258036,1733322643732,-500.0,0.00027498,2]
[344258038,1733322643742,-500.0,0.00027498,2]
[344258040,1733322643751,-500.0,0.00027498,2]
[344258042,1733322643761,-500.0,0.00027498,2]
[344258044,1733322643771,-500.0,0.00027498,2]
[344258046,1733322643781,-500.0,0.00027498,2]
[344258048,1733322643791,-500.0,0.00027498,2]
[344258050,1733322643802,-500.0,0.00027498,2]
[344258052,1733322643813,-500.0,0.00027498,2]
[344258054,1733322643825,-500.0,0.00027498,2]
[344258056,1733322643835,-500.0,0.00027498,2]
[344258059,1733322643847,-500.0,0.00027498,2]
[344258061,1733322643859,-500.0,0.00027498,2]
[344258063,1733322643870,-500.0,0.00027498,2]
[344258064,1733322643882,-500.0,0.00027498,2]
[344258067,1733322643894,-500.0,0.00027498,2]
[344258069,1733322643905,-568.33123465,0.00027498,2]
[344258071,1733322643922,-500.0,0.00027498,2]
[344258073,1733322643934,-500.0,0.00027498,2]
[344258074,1733322643945,-500.0,0.00027498,2]
[344258076,1733322643956,-385.11162272,0.00027499,2]
[344258078,1733322643967,-501.600459,0.00027499,7]
[344258080,1733322643978,-284.86096791,0.00027499,2]
[344258082,1733322643988,-804275.38,0.000275,7]
[344258084,1733322643998,-962.09,0.000275,30]
[344258086,1733322644009,-2684.99,0.000275,2]
[344258088,1733322644019,-64431.1396,0.00027561,30]
[344258090,1733322644029,-1642.82298243,0.00027606,2]
[344258092,1733322644039,-532.0,0.00027607,2]
[344258094,1733322644049,-2375.0,0.00027607,2]
[344258096,1733322644059,-2172.0,0.00027607,2]
[344258098,1733322644070,-500.0,0.00027669,7]
[344258100,1733322644080,-500.0,0.00027669,7]
[344258102,1733322644090,-1984.55,0.0002767,7]
[344258104,1733322644100,-500.0,0.0002767,7]
[344258106,1733322644109,-500.0,0.0002767,7]
[344258108,1733322644119,-500.0,0.0002767,7]
[344258110,1733322644130,-500.0,0.00027671,7]
[344258112,1733322644141,-500.0,0.00027671,7]
[344258114,1733322644150,-563.33,0.00027671,7]
[344258116,1733322644160,-559.96,0.00027671,7]
[344258118,1733322644175,-500.0,0.00027671,7]
[344258120,1733322644185,-697.74,0.00027671,7]
[344258121,1733322644194,-176.26095,0.00027759,2]
[344258123,1733322644204,-1572.91349991,0.00027812,2]
[344258125,1733322644214,-224.79794022,0.00027823,2]
[344258127,1733322644224,-156.72292975,0.00027824,15]
[344258129,1733322644233,-1934.68409586,0.00027843,2]
[344258131,1733322644243,-6666.0,0.000279,2]
[344258133,1733322644254,-500.0,0.00027943,7]
[344258135,1733322644263,-500.0,0.00027943,7]
[344258137,1733322644275,-152.36991823,0.00027944,2]
[344258139,1733322644285,-1984.55,0.00027944,7]
[344258141,1733322644295,-500.0,0.00027944,7]
[344258143,1733322644305,-500.0,0.00027944,7]
[344258145,1733322644314,-500.0,0.00027944,7]
[344258147,1733322644324,-500.0,0.00027945,7]
[344258149,1733322644334,-500.0,0.00027945,7]
[344258151,1733322644346,-563.33,0.00027945,7]
[344258153,1733322644356,-559.96,0.00027945,7]
[344258155,1733322644366,-500.0,0.00027945,7]
[344258157,1733322644376,-697.74,0.00027945,7]
[344258159,1733322644387,-500.74660377,0.00027973,2]
[344258161,1733322644396,-500.0,0.00027973,5]
[344258163,1733322644406,-1003.02500364,0.0002799,30]
[344258165,1733322644419,-12905.82173102,0.00028,2]
[344258167,1733322644428,-1726904.43850569,0.00028,5]
[344258169,1733322644442,-1541.19291609,0.00028,5]
[344258172,1733322644457,-4844.40423348,0.00028,5]
[344258351,1733322646378,-32313.96834298,0.00028,5]
[344259999,1733322666778,-860.28526024,0.00028,5]
[344260011,1733322666913,500.0,0.00024657,7]
[344260015,1733322666948,500.0,0.00024657,7]
[344260020,1733322666986,500.0,0.00024931,7]
[344260024,1733322667018,500.0,0.00025205,7]
[344260028,1733322667047,500.0,0.00025479,7]
[344260031,1733322667075,500.0,0.00025753,7]
[344260036,1733322667113,500.0,0.00026027,7]
[344260040,1733322667141,500.0,0.00026301,7]
[344263263,1733322711244,-500.0,0.00024657,7]
[344263266,1733322711271,-500.0,0.00024657,7]
[344263270,1733322711300,-349.22427104,0.00024657,7]
[344263273,1733322711328,-500.0,0.00024657,7]
[344263277,1733322711356,-500.0,0.00024657,7]
[344263281,1733322711387,-500.0,0.00024657,7]
[344263285,1733322711416,-500.0,0.00024657,7]
[344263289,1733322711444,-500.0,0.00024657,7]
[344263293,1733322711477,-500.0,0.00024657,7]
[344263297,1733322711527,-500.0,0.00024657,7]
[344263301,1733322711557,-500.0,0.00024657,7]
[344263305,1733322711584,-500.0,0.00024657,7]
[344263309,1733322711613,-500.0,0.00024657,7]
[344263314,1733322711655,-515.34704842,0.00024657,7]
[344263318,1733322711686,-500.0,0.00024931,7]
[344263321,1733322711716,-500.0,0.00024931,7]
[344263325,1733322711749,-500.0,0.00024931,7]
[344263329,1733322711897,-500.0,0.00024931,7]
[344263330,1733322711931,-500.0,0.00025205,7]
[344263331,1733322711961,-500.0,0.00025479,7]
[344263332,1733322711995,-500.0,0.00025753,7]
[344263333,1733322712023,-380.0,0.00025893,2]
[344263334,1733322712054,-1210.611507,0.00025941,2]
[344263335,1733322712083,-500.0,0.00026027,7]
[344263336,1733322712115,-500.0,0.00026301,7]
[344263337,1733322712144,-300.0,0.00026574,2]
[344263339,1733322712174,-300.0,0.00026574,2]
[344263340,1733322712204,-578.27,0.00026575,7]
[344263995,1733322748730,-517.53075397,0.00024657,7]
[344263996,1733322748765,-500.0,0.00024657,7]
[344263997,1733322748904,-500.0,0.00024657,7]
[344263998,1733322748934,-500.0,0.00024657,7]
[344263999,1733322748963,-500.0,0.00024931,7]
[344264000,1733322748994,-500.0,0.00024931,7]
[344264001,1733322749027,-500.0,0.00025205,7]
[344264002,1733322749064,-500.0,0.00025205,7]
[344264003,1733322749095,-500.0,0.00025479,7]
[344264004,1733322749126,-500.0,0.00025479,7]
[344264005,1733322749157,-500.0,0.00025753,7]
[344264006,1733322749188,-500.0,0.00025753,7]
[344264007,1733322749218,-500.0,0.00026027,7]
[344264008,1733322749255,-500.0,0.00026027,7]
[344264009,1733322766709,-518.56272872,0.00024657,7]
[344264010,1733322766738,-312.00407999,0.00024657,7]
[344264011,1733322766774,-354.08597798,0.00024657,7]
[344264012,1733322766802,-204.4501861,0.00026144,2]
[344264013,1733322766831,-500.0,0.00026301,7]
[344264014,1733322766860,-500.0,0.00026301,7]
[344264015,1733322766891,-394.30615422,0.00026575,7]
[344264016,1733322766921,-500.0,0.00026575,7]
[344264017,1733322766954,-95.18174598,0.00026575,7]
[344264018,1733322784278,-500.0,0.00024657,7]
[344264019,1733322784321,-500.0,0.00024657,7]
[344264020,1733322784354,-404.81825402,0.00026575,7]
[344264021,1733322784387,-482.99788284,0.00026849,7]
[344264022,1733322793207,8700.0,0.000261,60]
[344264023,1733322802481,-486.24030848,0.00026036,2]
[344264024,1733322814480,-500.0,0.00024657,7]
[344264025,1733322823663,-458.0,0.00024657,7]
[344264026,1733322833272,-42.0,0.00024657,7]
[344264028,1733322856720,305.388148,0.00013973,2]
[344264846,1733323329754,80820.0,0.000261,60]
[344264848,1733323552273,1000.0,0.00026,60]
[344264851,1733323603190,-300.0,0.00020345,2]
[344264852,1733323603213,-300.0,0.00020345,2]
[344264853,1733323603234,-472.40585725,0.00020346,2]
[344264854,1733323631181,310.118741,0.00013973,2]
[344264855,1733323662316,1000.0,0.00025,120]
[344264936,1733323832461,-268.86806555,0.0002,2]
[344264937,1733323832471,-195.11693445,0.0002,2]
[344265351,1733323838415,-550.84910125,0.0002,2]
[344265353,1733323838426,-300.0,0.00020345,2]
[344265355,1733323838439,-10743.00504092,0.00020346,2]
[344265357,1733323838448,-16249.58629797,0.00020347,2]
[344265373,1733323838577,-310.118741,0.00020447,2]
[344265375,1733323838610,-1000.0,0.00021,21]
[344265377,1733323838620,-3258.81840453,0.00022242,2]
[344265379,1733323838631,-212.64309029,0.00022321,2]
[344265382,1733323838644,-420.0,0.0002238,2]
[344265384,1733323838655,-13972.8835005,0.00022384,2]
[344265386,1733323838666,-500.0,0.00022421,2]
[344265388,1733323838676,-321.99705878,0.00022421,2]
[344265390,1733323838690,-500.0,0.00022421,2]
[344265392,1733323838699,-631.93025705,0.00022421,2]
[344265394,1733323838709,-500.0,0.00022421,2]
[344265396,1733323838720,-500.0,0.00022421,2]
[344265398,1733323838731,-500.0,0.00022421,2]
[344265400,1733323838742,-500.0,0.00022421,2]